[Event "Early-Titled-Tuesday-Blitz-May-07-2024"]
[Site "Chess.com"]
[Date "2024.05.07"]
[Round "3"]
[White "Louis-Paulsen-Fan"]
[Black "DeArron_Fox"]
[Result "1-0"]
[WhiteElo "2364"]
[BlackElo "2505"]
[TimeControl "180+1"]
[EndTime "8:33:37 PDT"]
[Termination "Louis-Paulsen-Fan won on time"]

1. d4 {[%clk 0:03:00.9]} 1... d5 {[%clk 0:03:00]} 2. Nf3 {[%clk 0:03:00.9]} 2...
Nf6 {[%clk 0:03:00.4]} 3. c4 {[%clk 0:03:01.1]} 3... e6 {[%clk 0:03:00.5]} 4.
Nc3 {[%clk 0:03:01.4]} 4... Be7 {[%clk 0:03:01.1]} 5. Bg5 {[%clk 0:03:01.5]}
5... h6 {[%clk 0:03:00.8]} 6. Bh4 {[%clk 0:03:01]} 6... O-O {[%clk 0:03:01.3]}
7. e3 {[%clk 0:03:01]} 7... b6 {[%clk 0:03:02]} 8. Bd3 {[%clk 0:03:00.6]} 8...
Bb7 {[%clk 0:02:55]} 9. O-O {[%clk 0:03:00.3]} 9... Nbd7 {[%clk 0:02:54.5]} 10.
Qe2 {[%clk 0:02:59.9]} 10... c5 {[%clk 0:02:53.5]} 11. Rfd1 {[%clk 0:02:57.5]}
11... Rc8 {[%clk 0:02:52.6]} 12. Ne5 {[%clk 0:02:56.9]} 12... cxd4 {[%clk
0:01:51.5]} 13. exd4 {[%clk 0:02:54.3]} 13... dxc4 {[%clk 0:01:18.8]} 14. Bxc4
{[%clk 0:02:52.1]} 14... Nd5 {[%clk 0:00:39.6]} 15. Bxd5 {[%clk 0:02:46.3]}
15... Bxd5 {[%clk 0:00:36.1]} 16. Nxd7 {[%clk 0:02:38.7]} 16... Qxd7 {[%clk
0:00:20.3]} 17. Bxe7 {[%clk 0:02:36.8]} 17... Bc4 {[%clk 0:00:20.8]} 18. Qe5
{[%clk 0:02:15.2]} 18... Qxe7 {[%clk 0:00:20.3]} 19. d5 {[%clk 0:02:15.8]} 19...
Qc5 {[%clk 0:00:11]} 20. b3 {[%clk 0:01:49.4]} 20... Bxd5 {[%clk 0:00:06.9]} 21.
Nxd5 {[%clk 0:01:48.3]} 21... exd5 {[%clk 0:00:07.5]} 22. Rxd5 {[%clk
0:01:45.3]} 22... Qc2 {[%clk 0:00:03.5]} 23. h3 {[%clk 0:01:36]} 23... Rfe8
{[%clk 0:00:04]} 24. Qd4 {[%clk 0:01:36]} 24... Re2 {[%clk 0:00:03.5]} 25. Rd7
{[%clk 0:01:30.5]} 25... Qb2 {[%clk 0:00:02.2]} 26. Rd1 {[%clk 0:01:06.6]} 26...
Qxd4 {[%clk 0:00:01.9]} 27. R1xd4 {[%clk 0:01:06.8]} 27... Rcc2 {[%clk
0:00:02.6]} 28. Rf4 {[%clk 0:01:06.1]} 28... f6 {[%clk 0:00:02.2]} 29. Rxa7
{[%clk 0:01:01.7]} 29... Rxa2 {[%clk 0:00:02.2]} 30. Rxa2 {[%clk 0:00:59.9]}
30... Rxa2 {[%clk 0:00:03.1]} 31. Rb4 {[%clk 0:01:00]} 31... Ra1+ {[%clk
0:00:02.4]} 32. Kh2 {[%clk 0:00:59.8]} 32... Ra6 {[%clk 0:00:03.3]} 33. Kg3
{[%clk 0:00:58.5]} 33... Kf7 {[%clk 0:00:03.3]} 34. Rc4 {[%clk 0:00:50.7]} 34...
g5 {[%clk 0:00:02.3]} 35. Rc7+ {[%clk 0:00:46.6]} 35... Kg6 {[%clk 0:00:02.2]}
36. Rb7 {[%clk 0:00:47]} 36... h5 {[%clk 0:00:01]} 37. f4 {[%clk 0:00:44.6]}
37... h4+ {[%clk 0:00:01.6]} 38. Kg4 {[%clk 0:00:42.5]} 38... f5+ {[%clk
0:00:02.2]} 39. Kf3 {[%clk 0:00:42.5]} 39... Ra3 {[%clk 0:00:01.5]} 40. Rxb6+
{[%clk 0:00:41.6]} 40... Kh5 {[%clk 0:00:02.4]} 41. fxg5 {[%clk 0:00:35]} 41...
Kxg5 {[%clk 0:00:03.3]} 42. Rb8 {[%clk 0:00:27.7]} 42... Ra1 {[%clk 0:00:03.5]}
43. b4 {[%clk 0:00:24.9]} 43... Ra3+ {[%clk 0:00:03.1]} 44. Kf2 {[%clk
0:00:24.6]} 44... Kf4 {[%clk 0:00:03.2]} 45. b5 {[%clk 0:00:19.4]} 45... Ra2+
{[%clk 0:00:03]} 46. Kg1 {[%clk 0:00:19.7]} 46... Kg3 {[%clk 0:00:03.1]} 47.
Rg8+ {[%clk 0:00:19.2]} 47... Kf4 {[%clk 0:00:03.7]} 48. b6 {[%clk 0:00:18.2]}
48... Rb2 {[%clk 0:00:04.3]} 49. Rb8 {[%clk 0:00:16.7]} 49... Kg3 {[%clk
0:00:02.5]} 50. Rg8+ {[%clk 0:00:16.2]} 50... Kf4 {[%clk 0:00:03]} 51. Rg6
{[%clk 0:00:15.1]} 51... Ke3 {[%clk 0:00:02.5]} 52. Rc6 {[%clk 0:00:11.6]} 52...
f4 {[%clk 0:00:02.6]} 53. Re6+ {[%clk 0:00:10.7]} 53... Kd4 {[%clk 0:00:03]} 54.
Rh6 {[%clk 0:00:10.5]} 54... Ke3 {[%clk 0:00:01.5]} 55. Re6+ {[%clk 0:00:10.3]}
55... Kd4 {[%clk 0:00:01.8]} 56. Rh6 {[%clk 0:00:10.5]} 56... Ke3 {[%clk
0:00:02.3]} 57. Rxh4 {[%clk 0:00:10.6]} 57... Rb1+ {[%clk 0:00:02]} 58. Kh2
{[%clk 0:00:10.4]} 58... Rxb6 {[%clk 0:00:02.9]} 59. Rh8 {[%clk 0:00:10.1]}
59... Kf2 {[%clk 0:00:02.2]} 60. Rf8 {[%clk 0:00:09.6]} 60... Rb4 {[%clk
0:00:02.8]} 61. g3 {[%clk 0:00:08.3]} 61... f3 {[%clk 0:00:02.6]} 62. h4 {[%clk
0:00:06.7]} 62... Re4 {[%clk 0:00:02.8]} 63. h5 {[%clk 0:00:03.5]} 63... Ke2
{[%clk 0:00:02.9]} 64. Kg1 {[%clk 0:00:03.7]} 64... Rg4 {[%clk 0:00:01.8]} 65.
Re8+ {[%clk 0:00:03.5]} 65... Kd3 {[%clk 0:00:02.4]} 66. Kf2 {[%clk 0:00:03.8]}
66... Rg5 {[%clk 0:00:02.4]} 67. Kxf3 {[%clk 0:00:03]} 67... Rxh5 {[%clk
0:00:03]} 68. g4 {[%clk 0:00:03.3]} 68... Rh7 {[%clk 0:00:03]} 69. Kf4 {[%clk
0:00:03.5]} 69... Rf7+ {[%clk 0:00:01.9]} 70. Kg5 {[%clk 0:00:03.9]} 70... Rg7+
{[%clk 0:00:02.5]} 71. Kh5 {[%clk 0:00:04.3]} 71... Kd4 {[%clk 0:00:03.2]} 72.
g5 {[%clk 0:00:04.5]} 72... Kd5 {[%clk 0:00:03.5]} 73. Kh6 {[%clk 0:00:05]}
73... Ra7 {[%clk 0:00:01.6]} 74. g6 {[%clk 0:00:05.4]} 74... Kd6 {[%clk
0:00:01.8]} 75. g7 {[%clk 0:00:05.1]} 1-0

[Event "Early-Titled-Tuesday-Blitz-May-07-2024"]
[Site "Chess.com"]
[Date "2024.05.07"]
[Round "3"]
[White "jcibarra"]
[Black "SharapovEvgeny"]
[Result "1/2-1/2"]
[WhiteElo "2946"]
[BlackElo "2635"]
[TimeControl "180+1"]
[EndTime "8:33:39 PDT"]
[Termination "Game drawn by stalemate"]

1. e4 {[%clk 0:03:00.9]} 1... c5 {[%clk 0:02:59.8]} 2. Nf3 {[%clk 0:02:59.9]}
2... d6 {[%clk 0:03:00.2]} 3. c3 {[%clk 0:02:59.9]} 3... Nf6 {[%clk 0:02:59.7]}
4. h3 {[%clk 0:02:59.2]} 4... Nc6 {[%clk 0:02:58.3]} 5. Bd3 {[%clk 0:02:59.6]}
5... e5 {[%clk 0:02:57.9]} 6. Bc2 {[%clk 0:02:59.9]} 6... Be7 {[%clk 0:02:57.5]}
7. d4 {[%clk 0:02:59.9]} 7... O-O {[%clk 0:02:57.3]} 8. d5 {[%clk 0:02:54.9]}
8... Nb8 {[%clk 0:02:56.4]} 9. O-O {[%clk 0:02:55.5]} 9... b5 {[%clk 0:02:54.9]}
10. a4 {[%clk 0:02:55.4]} 10... b4 {[%clk 0:02:54.8]} 11. c4 {[%clk 0:02:55.2]}
11... Ne8 {[%clk 0:02:52]} 12. b3 {[%clk 0:02:55.2]} 12... g6 {[%clk 0:02:51.1]}
13. Nh2 {[%clk 0:02:55.5]} 13... Ng7 {[%clk 0:02:50.7]} 14. f4 {[%clk
0:02:52.5]} 14... f6 {[%clk 0:02:39.1]} 15. Be3 {[%clk 0:02:48.9]} 15... Nd7
{[%clk 0:02:37.6]} 16. Nd2 {[%clk 0:02:48.9]} 16... exf4 {[%clk 0:02:36.8]} 17.
Bxf4 {[%clk 0:02:48.6]} 17... Ne5 {[%clk 0:02:36.9]} 18. Ndf3 {[%clk 0:02:47.5]}
18... Bd7 {[%clk 0:02:34.3]} 19. Qd2 {[%clk 0:02:47.4]} 19... Qc7 {[%clk
0:02:27.6]} 20. Rae1 {[%clk 0:02:47.8]} 20... Rae8 {[%clk 0:02:26.8]} 21. Bh6
{[%clk 0:02:46.5]} 21... Nf7 {[%clk 0:02:22.1]} 22. Bf4 {[%clk 0:02:44.8]} 22...
Ne5 {[%clk 0:02:20.2]} 23. Rf2 {[%clk 0:02:45]} 23... Rf7 {[%clk 0:02:10.4]} 24.
Ref1 {[%clk 0:02:44.3]} 24... Ref8 {[%clk 0:02:08.1]} 25. Bb1 {[%clk 0:02:38.5]}
25... Bd8 {[%clk 0:02:04.9]} 26. Bh6 {[%clk 0:02:36.6]} 26... Bc8 {[%clk
0:01:59.3]} 27. Bc2 {[%clk 0:02:33.4]} 27... Qe7 {[%clk 0:01:57.9]} 28. Kh1
{[%clk 0:02:30.4]} 28... a5 {[%clk 0:01:57.5]} 29. Re1 {[%clk 0:02:25.6]} 29...
Qc7 {[%clk 0:01:56.3]} 30. Bd1 {[%clk 0:02:23.8]} 30... Qe7 {[%clk 0:01:55.6]}
31. Ref1 {[%clk 0:02:24.1]} 31... Qc7 {[%clk 0:01:55.1]} 32. Nxe5 {[%clk
0:02:22.9]} 32... fxe5 {[%clk 0:01:54.6]} 33. Bg4 {[%clk 0:02:23.2]} 33... Rxf2
{[%clk 0:01:49.1]} 34. Rxf2 {[%clk 0:02:24.1]} 34... Rxf2 {[%clk 0:01:48.9]} 35.
Qxf2 {[%clk 0:02:24.8]} 35... Bxg4 {[%clk 0:01:42.9]} 36. Nxg4 {[%clk
0:02:24.9]} 36... Qf7 {[%clk 0:01:36.7]} 37. Qe3 {[%clk 0:02:17]} 37... Qf1+
{[%clk 0:01:33.5]} 38. Kh2 {[%clk 0:02:17.2]} 38... Nh5 {[%clk 0:01:29.3]} 39.
Bg5 {[%clk 0:01:59]} 39... Bxg5 {[%clk 0:01:27.7]} 40. Qxg5 {[%clk 0:01:58.6]}
40... Qf4+ {[%clk 0:01:26.9]} 41. Qxf4 {[%clk 0:01:58.1]} 41... Nxf4 {[%clk
0:01:27]} 42. Nf6+ {[%clk 0:01:55.5]} 42... Kf7 {[%clk 0:01:26.8]} 43. Nxh7
{[%clk 0:01:54.9]} 43... Nd3 {[%clk 0:01:26]} 44. Ng5+ {[%clk 0:01:55.3]} 44...
Ke7 {[%clk 0:01:26]} 45. Nf3 {[%clk 0:01:55.6]} 45... Kf6 {[%clk 0:01:17.9]} 46.
h4 {[%clk 0:01:53.4]} 46... Nc1 {[%clk 0:01:06]} 47. Nd2 {[%clk 0:01:53.4]}
47... Ne2 {[%clk 0:01:05.7]} 48. g3 {[%clk 0:01:53.2]} 48... Kg7 {[%clk
0:01:03.3]} 49. Kh3 {[%clk 0:01:51.8]} 49... Kh6 {[%clk 0:01:03.3]} 50. Kg4
{[%clk 0:01:51.7]} 50... Nd4 {[%clk 0:01:02.7]} 51. Kh3 {[%clk 0:01:48.7]} 51...
Kh5 {[%clk 0:01:02.5]} 52. g4+ {[%clk 0:01:48.6]} 52... Kh6 {[%clk 0:01:02.9]}
53. Kg3 {[%clk 0:01:49.1]} 53... Ne2+ {[%clk 0:01:02.1]} 54. Kf2 {[%clk
0:01:48]} 54... Nd4 {[%clk 0:01:02.4]} 55. Kg2 {[%clk 0:01:43.6]} 55... Ne2
{[%clk 0:01:02.1]} 56. Nf3 {[%clk 0:01:40.7]} 56... Nc1 {[%clk 0:00:59.6]} 57.
Ng5 {[%clk 0:01:34.3]} 57... Nxb3 {[%clk 0:00:58.1]} 58. Nf7+ {[%clk 0:01:34.4]}
58... Kg7 {[%clk 0:00:58.2]} 59. Nxd6 {[%clk 0:01:35.3]} 59... Nd2 {[%clk
0:00:54.5]} 60. Nb5 {[%clk 0:01:32.3]} 60... b3 {[%clk 0:00:49.8]} 61. d6 {[%clk
0:01:31.5]} 61... b2 {[%clk 0:00:43.4]} 62. Nc3 {[%clk 0:00:57.1]} 62... Kf7
{[%clk 0:00:38.9]} 63. h5 {[%clk 0:00:51.8]} 63... gxh5 {[%clk 0:00:38.7]} 64.
g5 {[%clk 0:00:47.2]} 64... Nxe4 {[%clk 0:00:34.9]} 65. g6+ {[%clk 0:00:42.9]}
65... Kxg6 {[%clk 0:00:32.2]} 66. d7 {[%clk 0:00:40.9]} 66... Nxc3 {[%clk
0:00:32]} 67. d8=Q {[%clk 0:00:41.6]} 67... b1=Q {[%clk 0:00:31.3]} 68. Qg8+
{[%clk 0:00:39.1]} 68... Kf5 {[%clk 0:00:27.1]} 69. Qh7+ {[%clk 0:00:33.1]}
69... Kf4 {[%clk 0:00:26.9]} 70. Qh6+ {[%clk 0:00:29.1]} 70... Ke4 {[%clk
0:00:26.2]} 71. Qxh5 {[%clk 0:00:27.7]} 71... Qc2+ {[%clk 0:00:24.2]} 72. Kg3
{[%clk 0:00:25.6]} 72... Qd3+ {[%clk 0:00:23.4]} 73. Kh4 {[%clk 0:00:25.7]}
73... Qxc4 {[%clk 0:00:20.1]} 74. Qe8 {[%clk 0:00:23.5]} 74... Ke3+ {[%clk
0:00:19.1]} 75. Kh3 {[%clk 0:00:22.2]} 75... Ne4 {[%clk 0:00:18.5]} 76. Qxe5
{[%clk 0:00:21.1]} 76... Qe2 {[%clk 0:00:17.4]} 77. Qe7 {[%clk 0:00:04.4]} 77...
Qf3+ {[%clk 0:00:13.8]} 78. Kh2 {[%clk 0:00:05]} 78... Qg3+ {[%clk 0:00:12.3]}
79. Kh1 {[%clk 0:00:05.3]} 79... Qh3+ {[%clk 0:00:10.7]} 80. Kg1 {[%clk
0:00:05.5]} 80... Qg3+ {[%clk 0:00:11]} 81. Kh1 {[%clk 0:00:05.9]} 81... c4
{[%clk 0:00:11.3]} 82. Qxe4+ {[%clk 0:00:04.9]} 82... Kxe4 {[%clk 0:00:11.1]}
1/2-1/2

[Event "Early-Titled-Tuesday-Blitz-May-07-2024"]
[Site "Chess.com"]
[Date "2024.05.07"]
[Round "3"]
[White "Aryan_Tamadon"]
[Black "svilson23"]
[Result "0-1"]
[WhiteElo "2553"]
[BlackElo "2291"]
[TimeControl "180+1"]
[EndTime "8:33:40 PDT"]
[Termination "svilson23 won on time"]

1. Nf3 {[%clk 0:03:00.9]} 1... d5 {[%clk 0:02:58.1]} 2. d3 {[%clk 0:03:00.9]}
2... c6 {[%clk 0:02:57.9]} 3. Bd2 {[%clk 0:03:00.7]} 3... g6 {[%clk 0:02:58.2]}
4. Qc1 {[%clk 0:03:01]} 4... Bg7 {[%clk 0:02:58.6]} 5. g3 {[%clk 0:03:01.7]}
5... h5 {[%clk 0:02:58.6]} 6. Bg2 {[%clk 0:02:55.5]} 6... e5 {[%clk 0:02:58.8]}
7. a4 {[%clk 0:02:37.4]} 7... Bg4 {[%clk 0:02:58.3]} 8. e4 {[%clk 0:02:31.2]}
8... Ne7 {[%clk 0:02:49.1]} 9. Nc3 {[%clk 0:02:12.9]} 9... Na6 {[%clk
0:02:42.3]} 10. h3 {[%clk 0:02:04.4]} 10... Bd7 {[%clk 0:02:27.8]} 11. exd5
{[%clk 0:02:00.3]} 11... Nxd5 {[%clk 0:02:24.9]} 12. O-O {[%clk 0:02:01.2]}
12... O-O {[%clk 0:02:18.1]} 13. Re1 {[%clk 0:02:01]} 13... Re8 {[%clk
0:02:09.3]} 14. Bh6 {[%clk 0:01:59.2]} 14... Nxc3 {[%clk 0:02:03.9]} 15. Bxg7
{[%clk 0:01:54.6]} 15... Kxg7 {[%clk 0:02:02]} 16. bxc3 {[%clk 0:01:55.3]} 16...
Qf6 {[%clk 0:01:59.2]} 17. Re3 {[%clk 0:01:38.8]} 17... Nc7 {[%clk 0:01:53.1]}
18. c4 {[%clk 0:01:21]} 18... Re7 {[%clk 0:01:49.5]} 19. Qb2 {[%clk 0:01:13.3]}
19... Rae8 {[%clk 0:01:42.2]} 20. Rae1 {[%clk 0:01:06.5]} 20... e4 {[%clk
0:01:35.6]} 21. Qxf6+ {[%clk 0:00:51.3]} 21... Kxf6 {[%clk 0:01:36.5]} 22. dxe4
{[%clk 0:00:52]} 22... Na6 {[%clk 0:01:31.5]} 23. e5+ {[%clk 0:00:47.3]} 23...
Kg7 {[%clk 0:01:31.8]} 24. a5 {[%clk 0:00:45]} 24... Bf5 {[%clk 0:01:27.3]} 25.
Nd4 {[%clk 0:00:45]} 25... Be6 {[%clk 0:01:20.6]} 26. Bf1 {[%clk 0:00:40.6]}
26... Nc5 {[%clk 0:01:18.5]} 27. c3 {[%clk 0:00:37.4]} 27... Rd8 {[%clk
0:00:59.8]} 28. f4 {[%clk 0:00:34.7]} 28... Bc8 {[%clk 0:00:56.7]} 29. Kf2
{[%clk 0:00:26]} 29... Ne6 {[%clk 0:00:55.2]} 30. Rd1 {[%clk 0:00:19.5]} 30...
Kg8 {[%clk 0:00:46.9]} 31. Rd2 {[%clk 0:00:09]} 31... Red7 {[%clk 0:00:44.5]}
32. Red3 {[%clk 0:00:07.5]} 32... Nc5 {[%clk 0:00:44.2]} 33. Re3 {[%clk
0:00:08]} 33... Nb3 {[%clk 0:00:40.7]} 34. Nxb3 {[%clk 0:00:06.2]} 34... Rxd2+
{[%clk 0:00:41.6]} 35. Nxd2 {[%clk 0:00:07]} 35... Rxd2+ {[%clk 0:00:41.7]} 36.
Be2 {[%clk 0:00:04.3]} 36... Be6 {[%clk 0:00:40.3]} 37. Rd3 {[%clk 0:00:04.2]}
37... Rxe2+ {[%clk 0:00:38.7]} 38. Kxe2 {[%clk 0:00:03.5]} 38... Bxc4 {[%clk
0:00:39.6]} 39. Ke3 {[%clk 0:00:04]} 39... Bxd3 {[%clk 0:00:38.8]} 40. Kxd3
{[%clk 0:00:04.9]} 40... Kf8 {[%clk 0:00:36.9]} 41. g4 {[%clk 0:00:04.7]} 41...
h4 {[%clk 0:00:27.5]} 42. f5 {[%clk 0:00:03.7]} 42... gxf5 {[%clk 0:00:26.1]}
43. gxf5 {[%clk 0:00:04.6]} 43... Ke7 {[%clk 0:00:26.5]} 44. c4 {[%clk 0:00:04]}
44... b5 {[%clk 0:00:20.5]} 45. cxb5 {[%clk 0:00:02.4]} 45... cxb5 {[%clk
0:00:21.4]} 46. Kd4 {[%clk 0:00:03.1]} 46... a6 {[%clk 0:00:21.7]} 47. Kc5
{[%clk 0:00:03.1]} 47... Kd7 {[%clk 0:00:20.6]} 48. Kd5 {[%clk 0:00:03.6]} 48...
Ke7 {[%clk 0:00:20.5]} 49. f6+ {[%clk 0:00:03.1]} 49... Kd7 {[%clk 0:00:20.5]}
50. Ke4 {[%clk 0:00:02.2]} 50... Ke6 {[%clk 0:00:20.4]} 51. Kd4 {[%clk 0:00:03]}
51... b4 {[%clk 0:00:18.6]} 52. Kc4 {[%clk 0:00:03]} 52... Kxe5 {[%clk
0:00:18.9]} 53. Kxb4 {[%clk 0:00:03.8]} 53... Kxf6 {[%clk 0:00:19.1]} 54. Kc5
{[%clk 0:00:04.1]} 54... Ke5 {[%clk 0:00:16.6]} 55. Kb6 {[%clk 0:00:05]} 55...
f5 {[%clk 0:00:16.7]} 56. Kxa6 {[%clk 0:00:05.6]} 56... f4 {[%clk 0:00:17.1]}
57. Kb6 {[%clk 0:00:05.9]} 57... f3 {[%clk 0:00:17.5]} 58. a6 {[%clk 0:00:06.8]}
58... f2 {[%clk 0:00:18]} 59. a7 {[%clk 0:00:07.7]} 59... f1=Q {[%clk
0:00:16.7]} 60. a8=Q {[%clk 0:00:08.6]} 60... Qb1+ {[%clk 0:00:16.5]} 61. Kc5
{[%clk 0:00:08.6]} 61... Qc2+ {[%clk 0:00:16.4]} 62. Kb6 {[%clk 0:00:09.1]}
62... Qb2+ {[%clk 0:00:15.8]} 63. Kc7 {[%clk 0:00:09.5]} 63... Qc3+ {[%clk
0:00:14.2]} 64. Kd7 {[%clk 0:00:10.1]} 64... Qxh3+ {[%clk 0:00:09.9]} 65. Ke7
{[%clk 0:00:10.1]} 65... Qe6+ {[%clk 0:00:10]} 66. Kf8 {[%clk 0:00:10.7]} 66...
h3 {[%clk 0:00:07.3]} 67. Qa5+ {[%clk 0:00:06.7]} 67... Kf6 {[%clk 0:00:06.5]}
68. Qc3+ {[%clk 0:00:07]} 68... Kg5 {[%clk 0:00:04.5]} 69. Qg3+ {[%clk
0:00:05.6]} 69... Qg4 {[%clk 0:00:04.6]} 70. Qe5+ {[%clk 0:00:05.9]} 70... Qf5+
{[%clk 0:00:04.6]} 71. Qxf5+ {[%clk 0:00:04.2]} 71... Kxf5 {[%clk 0:00:05.5]}
0-1

[Event "Early-Titled-Tuesday-Blitz-May-07-2024"]
[Site "Chess.com"]
[Date "2024.05.07"]
[Round "3"]
[White "RojonR"]
[Black "igorkovalenko"]
[Result "0-1"]
[WhiteElo "2540"]
[BlackElo "2941"]
[TimeControl "180+1"]
[EndTime "8:33:49 PDT"]
[Termination "igorkovalenko won by resignation"]

1. e4 {[%clk 0:02:59.3]} 1... d5 {[%clk 0:02:58.8]} 2. exd5 {[%clk 0:02:58.5]}
2... Qxd5 {[%clk 0:02:59.4]} 3. Nc3 {[%clk 0:02:57.9]} 3... Qa5 {[%clk
0:02:57.7]} 4. d4 {[%clk 0:02:57.6]} 4... Nf6 {[%clk 0:02:57.5]} 5. Bc4 {[%clk
0:02:57.2]} 5... Nc6 {[%clk 0:02:57.6]} 6. Nf3 {[%clk 0:02:48.8]} 6... Bg4
{[%clk 0:02:52.4]} 7. h3 {[%clk 0:02:44.5]} 7... Bxf3 {[%clk 0:02:29.4]} 8. Qxf3
{[%clk 0:02:44.1]} 8... O-O-O {[%clk 0:02:29.8]} 9. d5 {[%clk 0:02:17.9]} 9...
Nd4 {[%clk 0:02:22.8]} 10. Qd3 {[%clk 0:02:10.6]} 10... e5 {[%clk 0:02:22.4]}
11. O-O {[%clk 0:02:01.6]} 11... Bb4 {[%clk 0:02:10]} 12. Bg5 {[%clk 0:01:29.5]}
12... Kb8 {[%clk 0:02:00.7]} 13. a3 {[%clk 0:01:25]} 13... Bxc3 {[%clk
0:02:00.2]} 14. bxc3 {[%clk 0:01:25.9]} 14... Ne6 {[%clk 0:02:00.3]} 15. Bxf6
{[%clk 0:01:24.1]} 15... gxf6 {[%clk 0:02:01.2]} 16. Qf3 {[%clk 0:01:04.5]}
16... Nf4 {[%clk 0:01:59.1]} 17. Rab1 {[%clk 0:01:03.2]} 17... Rd6 {[%clk
0:01:54.7]} 18. Kh2 {[%clk 0:00:59.1]} 18... Qc5 {[%clk 0:01:50.5]} 19. Ba2
{[%clk 0:00:46.1]} 19... Rhd8 {[%clk 0:01:39.9]} 20. Rfd1 {[%clk 0:00:42]} 20...
a6 {[%clk 0:01:35.3]} 21. g3 {[%clk 0:00:39.7]} 21... Ng6 {[%clk 0:01:31]} 22.
Rb4 {[%clk 0:00:35.3]} 22... Ne7 {[%clk 0:01:27.8]} 23. Rdb1 {[%clk 0:00:34.8]}
23... b6 {[%clk 0:01:16.5]} 24. c4 {[%clk 0:00:20.3]} 24... f5 {[%clk
0:01:13.5]} 25. a4 {[%clk 0:00:18.3]} 25... Ka7 {[%clk 0:01:08.6]} 26. Qe3
{[%clk 0:00:17.3]} 26... Qxe3 {[%clk 0:01:06.6]} 27. fxe3 {[%clk 0:00:18.2]}
27... c5 {[%clk 0:01:03.8]} 28. R4b2 {[%clk 0:00:15.3]} 28... a5 {[%clk
0:01:03.8]} 29. Rf1 {[%clk 0:00:13]} 29... Rg8 {[%clk 0:01:03]} 30. c3 {[%clk
0:00:12.2]} 30... Rdg6 {[%clk 0:01:02.4]} 31. Rg2 {[%clk 0:00:12.6]} 31... h5
{[%clk 0:01:00.3]} 32. Bb1 {[%clk 0:00:11.2]} 32... e4 {[%clk 0:01:00.5]} 33. h4
{[%clk 0:00:10.8]} 33... Kb7 {[%clk 0:01:00]} 34. Rf4 {[%clk 0:00:10.6]} 34...
Kc7 {[%clk 0:01:00.1]} 35. Bc2 {[%clk 0:00:10.9]} 35... Kd6 {[%clk 0:01:00.7]}
36. Bd1 {[%clk 0:00:11.6]} 36... Rh6 {[%clk 0:00:59.7]} 37. Rb2 {[%clk
0:00:11.7]} 37... Ke5 {[%clk 0:01:00.2]} 38. Rf1 {[%clk 0:00:08.3]} 38... Rhg6
{[%clk 0:00:54]} 39. Rg2 {[%clk 0:00:07.2]} 39... Rh6 {[%clk 0:00:53.6]} 40. Rb2
{[%clk 0:00:07.2]} 40... Rb8 {[%clk 0:00:51.8]} 41. Rg2 {[%clk 0:00:05.6]} 41...
Nc8 {[%clk 0:00:51.9]} 42. Rb2 {[%clk 0:00:05.6]} 42... Nd6 {[%clk 0:00:52.3]}
43. Be2 {[%clk 0:00:05.6]} 43... Ne8 {[%clk 0:00:47.6]} 44. Rg1 {[%clk
0:00:05.5]} 44... Nf6 {[%clk 0:00:46.8]} 45. Rf1 {[%clk 0:00:05.9]} 45... Rg6
{[%clk 0:00:46.9]} 46. Rg1 {[%clk 0:00:05.4]} 46... Rh6 {[%clk 0:00:43.2]} 47.
Rf1 {[%clk 0:00:05.6]} 47... Ne8 {[%clk 0:00:43]} 48. Rg1 {[%clk 0:00:06.1]}
48... Nd6 {[%clk 0:00:38.7]} 49. Rf1 {[%clk 0:00:06.6]} 49... Kf6 {[%clk
0:00:36.4]} 50. Rg1 {[%clk 0:00:07]} 50... Kg6 {[%clk 0:00:33.3]} 51. Rgb1
{[%clk 0:00:07.5]} 51... Nc8 {[%clk 0:00:32.3]} 52. Rb5 {[%clk 0:00:07.6]} 52...
Ra8 {[%clk 0:00:31.5]} 53. Rd1 {[%clk 0:00:05.1]} 53... Ra7 {[%clk 0:00:28.9]}
54. Rdb1 {[%clk 0:00:03.6]} 54... Kg7 {[%clk 0:00:27.2]} 55. Rf1 {[%clk
0:00:03.3]} 55... Kf6 {[%clk 0:00:25.4]} 56. Rf2 {[%clk 0:00:03.7]} 56... Ke5
{[%clk 0:00:25.8]} 57. Rf1 {[%clk 0:00:04.2]} 57... Rd7 {[%clk 0:00:25.5]} 58.
Rfb1 {[%clk 0:00:04.5]} 58... Rdd6 {[%clk 0:00:26.1]} 59. Rf1 {[%clk 0:00:04.6]}
59... Kf6 {[%clk 0:00:24.3]} 60. Rg1 {[%clk 0:00:04.8]} 60... Kg6 {[%clk
0:00:24.9]} 61. Rf1 {[%clk 0:00:05.4]} 61... Rh8 {[%clk 0:00:25.2]} 62. Rfb1
{[%clk 0:00:05.7]} 62... Re8 {[%clk 0:00:24.6]} 63. Rf1 {[%clk 0:00:05.6]} 63...
Rf6 {[%clk 0:00:24.9]} 64. Rfb1 {[%clk 0:00:05.4]} 64... Kh6 {[%clk 0:00:25.4]}
65. Rf1 {[%clk 0:00:05.8]} 65... Rg8 {[%clk 0:00:25.5]} 66. Rfb1 {[%clk
0:00:05.8]} 66... f4 {[%clk 0:00:24.3]} 67. exf4 {[%clk 0:00:05.3]} 67... Rfg6
{[%clk 0:00:24.7]} 68. Rg1 {[%clk 0:00:05.6]} 68... Rd6 {[%clk 0:00:19.4]} 69.
Rf1 {[%clk 0:00:04.9]} 69... Rdg6 {[%clk 0:00:18.4]} 70. Rg1 {[%clk 0:00:04.5]}
70... Ne7 {[%clk 0:00:19]} 71. Rg2 {[%clk 0:00:03.6]} 71... Nf5 {[%clk
0:00:19.4]} 72. Rg1 {[%clk 0:00:01.8]} 72... Nxg3 {[%clk 0:00:19.6]} 73. Bd1
{[%clk 0:00:02.5]} 73... Nf5 {[%clk 0:00:19.3]} 74. Rg5 {[%clk 0:00:02.6]} 74...
Ne3 {[%clk 0:00:15.6]} 75. Rxh5+ {[%clk 0:00:02.3]} 75... Kg7 {[%clk 0:00:15.6]}
76. Rg5 {[%clk 0:00:01.4]} 76... Nxd1 {[%clk 0:00:15]} 77. Rxg6+ {[%clk
0:00:02.3]} 77... Kxg6 {[%clk 0:00:14.9]} 78. Rxb6+ {[%clk 0:00:03.2]} 78... Kf5
{[%clk 0:00:15.5]} 79. Rc6 {[%clk 0:00:03.2]} 79... Kxf4 {[%clk 0:00:15.7]} 80.
Rc7 {[%clk 0:00:03.5]} 80... f5 {[%clk 0:00:15.6]} 81. d6 {[%clk 0:00:03.4]}
81... Ne3 {[%clk 0:00:14.7]} 82. Rxc5 {[%clk 0:00:03.5]} 82... Kf3 {[%clk
0:00:13.5]} 83. Re5 {[%clk 0:00:02.9]} 83... Ng4+ {[%clk 0:00:13.8]} 0-1